lending/lending_fUSD_20251124
["ID","MTS","AMOUNT","RATE_DAILY","PERIOD"]
[394840610,1764005446162,-151.0,0.00042019,30]
[394840611,1764005446173,-151.0,0.00042019,30]
[394840612,1764005446183,-151.0,0.00042019,30]
[394840613,1764005446193,-151.0,0.00042019,30]
[394840614,1764005446203,-156.476947,0.00042019,30]
[394840615,1764005446213,-151.0,0.00042019,120]
[394840616,1764005446223,-151.0,0.00042019,120]
[394840617,1764005446233,-151.0,0.00042019,120]
[394840618,1764005446243,-151.0,0.00042019,120]
[394840620,1764005446490,-151.0,0.00042019,120]
[394840621,1764005446500,-151.0,0.00042019,120]
[394840622,1764005446511,-151.0,0.00042019,120]
[394840623,1764005446521,-151.0,0.00042019,120]
[394840624,1764005446530,-155.779725,0.00042019,120]
[394840625,1764005446540,-151.466997,0.00042019,120]
[394840626,1764005446550,-151.0,0.00042019,120]
[394840627,1764005446560,-153.665814,0.00042019,120]
[394840628,1764005446570,-151.0,0.00042019,120]
[394840629,1764005446580,-151.0,0.00042019,120]
[394840630,1764005446590,-151.0,0.00042019,120]
[394840631,1764005446599,-151.0,0.00042019,120]
[394840632,1764005446609,-151.0,0.00042019,120]
[394840633,1764005446620,-151.0,0.00042019,120]
[394840634,1764005446630,-151.0,0.00042019,120]
[394840635,1764005446639,-151.0,0.00042019,120]
[394840636,1764005446649,-151.0,0.00042019,120]
[394840637,1764005446659,-151.0,0.00042019,120]
[394840638,1764005446669,-151.0,0.00042019,120]
[394840639,1764005446678,-151.0,0.00042019,120]
[394840640,1764005446687,-151.0,0.00042019,120]
[394840641,1764005446697,-151.0,0.00042019,120]
[394840642,1764005446706,-151.0,0.00042019,120]
[394840643,1764005446716,-151.0,0.00042019,120]
[394840644,1764005446727,-151.0,0.00042019,120]
[394840646,1764005446736,-243.793028,0.00042019,120]
[394840648,1764005446745,-151.0,0.00042019,120]
[394840650,1764005446755,-161.866969,0.00042019,120]
[394840652,1764005446764,-151.0,0.00042019,120]
[394840654,1764005446773,-151.84249,0.00042019,120]
[394840656,1764005446783,-151.0,0.00042019,120]
[394840658,1764005446792,-151.0,0.00042019,120]
[394840660,1764005446802,-154.610112,0.00042019,120]
[394840662,1764005446811,-152.339965,0.00042019,120]
[394840664,1764005446820,-151.0,0.00042019,120]
[394840666,1764005446830,-151.0,0.00042019,120]
[394840668,1764005446839,-151.0,0.00042019,120]
[394840670,1764005446849,-277.387635,0.00042019,120]
[394840672,1764005446859,-151.0,0.00042019,120]
[394840674,1764005446871,-151.0,0.00042019,120]
[394840676,1764005446883,-151.0,0.00042019,120]
[394840678,1764005446894,-151.0,0.00042019,120]
[394840680,1764005446904,-151.0,0.00042019,120]
[394840682,1764005446915,-151.0,0.00042019,120]
[394840684,1764005446925,-151.0,0.00042019,120]
[394840686,1764005446935,-160.243049,0.00042019,120]
[394840688,1764005446945,-195.187797,0.00042019,120]
[394840690,1764005446954,-151.0,0.00042019,120]
[394840692,1764005446966,-151.0,0.00042019,120]
[394840694,1764005446975,-171.061776,0.00042019,120]
[394840696,1764005446985,-151.0,0.00042019,120]
[394840698,1764005446994,-151.0,0.00042019,120]
[394840701,1764005447003,-151.0,0.00042019,120]
[394840704,1764005447013,-151.0,0.00042019,120]
[394840706,1764005447022,-151.0,0.00042019,120]
[394840709,1764005447030,-151.0,0.00042019,120]
[394840711,1764005447039,-151.0,0.00042019,120]
[394840713,1764005447047,-199.347392,0.00042019,120]
[394840715,1764005447057,-152.948041,0.00042019,120]
[394840717,1764005447067,-181.57871769,0.0004202,31]
[394840719,1764005447076,-11358.19808376,0.0004202,21]
[394840721,1764005447086,-536258.35497416,0.00042021,7]
[394840735,1764005447207,-2762.23953241,0.00042021,7]
[394840737,1764005447218,-747.90868822,0.00042021,7]
[394840740,1764005447230,-1124.00175,0.00042021,7]
[394840742,1764005447241,-791.07285415,0.00042021,7]
[394840744,1764005447254,-638.0655887,0.00042021,7]
[394840746,1764005447265,-1183.06832851,0.00042021,7]
[394841140,1764005469612,193.0,0.00017694,120]
[394841144,1764006030398,-154.0204295,0.00015973,2]
[394841145,1764006030430,-174.51895799,0.00015973,2]
[394841146,1764006030463,-250.0,0.00015979,2]
[394841147,1764006030495,-222.13286016,0.0001604,2]
[394841148,1764006030518,-154.0204295,0.00016072,2]
[394841149,1764006030529,-174.51895799,0.00016072,2]
[394841150,1764006030539,-221.46061251,0.00016072,2]
[394841151,1764006030549,-28.53938749,0.00016072,2]
[394841152,1764006030560,-222.13286016,0.00016072,2]
[394841153,1764006030570,-398.6555047,0.00016072,2]
[394841154,1764006211025,-403.7956,0.00015973,2]
[394841155,1764006211061,-300.0,0.00016022,2]
[394841156,1764006211099,-211.98920063,0.00016056,2]
[394841157,1764006211120,-401.5100078,0.00016072,2]
[394841158,1764006211157,-149.16223985,0.00016072,2]
[394841159,1764006211168,-150.83776015,0.00016072,2]
[394841160,1764006211180,-149.16223985,0.00016072,2]
[394841161,1764006211190,-62.82696078,0.00016072,2]
[394841162,1764006211203,-170.71599094,0.00016072,2]
[394841164,1764006223338,-191.45704828,0.00016072,2]
[394841165,1764006223370,-215.57589564,0.00016073,2]
[394841166,1764006223383,-191.45704828,0.00016073,2]
[394841167,1764006223399,-92.96705608,0.00016073,2]
[394841168,1764006223408,-163.15664743,0.00016073,2]
[394841169,1764006223417,-145.38630429,0.00016073,2]
[394841213,1764006631395,-304.38658288,0.00015972,2]
[394841217,1764006631405,-169.81635212,0.00015975,2]
[394841220,1764006631418,-260.26107272,0.00015975,2]
[394841221,1764006631428,-300.0,0.00016072,2]
[394841222,1764006631438,-300.0,0.00016072,2]
[394841224,1764006631448,-300.0,0.00016072,2]
[394841226,1764006631457,-1200.0,0.00016072,2]
[394841227,1764006631467,-500.0,0.00016073,2]
[394841228,1764006631476,-500.48889025,0.00016073,2]
[394841229,1764006631486,-500.0,0.00016073,2]
[394841230,1764006631496,-500.0,0.00016073,2]
[394841231,1764006631506,-500.0,0.00016073,2]
[394841232,1764006631516,-151.0,0.00016075,2]
[394841233,1764006631529,-151.0,0.00016075,2]
[394841234,1764006631539,-151.0,0.00016075,2]
[394841235,1764006631549,-151.0,0.00016075,2]
[394841236,1764006631558,-151.0,0.00016075,2]
[394841237,1764006631567,-151.0,0.00016075,2]
[394841238,1764006631577,-151.0,0.00016075,2]
[394841239,1764006631586,-151.0,0.00016075,2]
[394841240,1764006631595,-151.0,0.00016075,2]
[394841241,1764006631607,-151.0,0.00016075,2]
[394841242,1764006631616,-151.0,0.00016075,2]
[394841243,1764006631626,-151.0,0.00016075,2]
[394841244,1764006631635,-285.24487916,0.00016075,2]
[394841245,1764006631645,-300.0,0.00016084,2]
[394841246,1764006631654,-500.0,0.00016085,2]
[394841247,1764006631664,-500.0,0.00016085,2]
[394841249,1764006631673,-535.46566359,0.00016085,2]
[394841251,1764006631682,-500.0,0.00016085,2]
[394841253,1764006631691,-527.60692555,0.00016085,2]
[394841255,1764006631700,-500.0,0.00016085,2]
[394841257,1764006631709,-500.0,0.00016085,2]
[394841259,1764006631721,-500.0,0.00016085,2]
[394841261,1764006631730,-500.0,0.00016085,2]
[394841263,1764006631739,-500.0,0.00016085,2]
[394841264,1764006631748,-500.0,0.00016085,2]
[394841266,1764006631758,-500.0,0.00016085,2]
[394841269,1764006631768,-357.81206798,0.00016085,2]
[394841271,1764006631780,-142.18793202,0.00016085,2]
[394841273,1764006631789,-500.0,0.00016085,2]
[394841275,1764006631798,-500.0,0.00016085,2]
[394841277,1764006631807,-500.0,0.00016085,2]
[394841279,1764006631817,-355.16562476,0.000164,2]
[394841280,1764006631826,-481.42849134,0.00016621,2]
[394841281,1764006631836,-1000.0,0.00016621,2]
[394841282,1764006631845,-237.01110095,0.00016621,2]
[394841283,1764006631855,-5084.20685093,0.00016797,2]
[394841284,1764006631870,-6649.16731101,0.00016797,2]
[394841285,1764006631879,-874.80198702,0.00016913,2]
[394841286,1764006631888,-874.80198702,0.00016913,2]
[394841287,1764006631898,-500.0,0.00016999,2]
[394841288,1764006631907,-250.0,0.00017,2]
[394841289,1764006631917,-1500.0,0.00017168,2]
[394841290,1764006631927,-460.0,0.00017283,2]
[394841291,1764006631937,-325.32599096,0.00017318,2]
[394841292,1764006631946,-220.0,0.00017324,2]
[394841293,1764006631956,-220.0,0.00017325,2]
[394841294,1764006631966,-220.0,0.00017379,2]
[394841295,1764006631975,-220.0,0.00017519,2]
[394841296,1764006631985,-220.0,0.00017534,2]
[394841297,1764006631995,-304.38658287,0.0001756,2]
[394841298,1764006632003,-420.0,0.0001757,2]
[394841299,1764006632013,-420.0,0.0001757,2]
[394841300,1764006632023,-250.0,0.0001757,2]
[394841301,1764006632032,-250.0,0.0001757,2]
[394841302,1764006632042,-195.0,0.0001757,2]
[394841303,1764006632051,-300.0,0.0001757,2]
[394841304,1764006632061,-1680.0,0.00017659,2]
[394841305,1764006632070,-220.0,0.00017662,2]
[394841306,1764006632079,-2424.15121406,0.00017673,2]
[394841307,1764006632088,-250.0,0.00017679,2]
[394841308,1764006632098,-412.0,0.000177,2]
[394841309,1764006632115,-220.0,0.00017702,2]
[394841310,1764006632127,-2000.0,0.00017716,2]
[394841311,1764006632137,-220.0,0.00017751,2]
[394841312,1764006632147,-220.0,0.00017823,2]
[394841313,1764006632156,-220.0,0.00017885,2]
[394841314,1764006632167,-220.0,0.00017903,2]
[394841315,1764006632176,-220.0,0.00018029,2]
[394841316,1764006632186,-220.0,0.00018078,2]
[394841317,1764006632196,-211.83334436,0.00018095,2]
[394841318,1764006632205,-220.0,0.00018113,2]
[394841319,1764006632215,-802.39903168,0.00018217,2]
[394841320,1764006632230,-2500.0,0.00018264,2]
[394841321,1764006632239,-220.0,0.00018439,2]
[394841322,1764006632249,-220.0,0.00018469,2]
[394841323,1764006632259,-160.47637955,0.00018526,2]
[394841324,1764006632270,-500.0,0.00018573,2]
[394841325,1764006632280,-500.0,0.00018573,2]
[394841326,1764006632290,-500.0,0.00018573,2]
[394841327,1764006632299,-500.0,0.00018573,2]
[394841328,1764006632311,-164.86522427,0.00018573,2]
[394841329,1764006632320,-500.0,0.00018573,2]
[394841330,1764006632330,-500.0,0.00018573,2]
[394841331,1764006632340,-220.0,0.00018593,2]
[394841332,1764006632349,-97507.68470539,0.000186,2]
[394841333,1764006632363,-799.91360305,0.000186,2]
[394841334,1764006632374,-3673.29706504,0.000186,2]
[394841335,1764006632386,-487.0242411,0.000186,2]
[394841336,1764006632402,-242485.99961569,0.000186,2]
[394841337,1764006632413,-13210.65818828,0.000186,2]
[394841338,1764006632425,-25853.31830564,0.000186,2]
[394841339,1764006632437,-535.34303366,0.000186,2]
[394841340,1764006632450,-500.0,0.000186,2]
[394841341,1764006632465,-9127.84833765,0.000186,2]
[394841342,1764006632477,-1761.76,0.000186,2]
[394841343,1764006632489,-827.15139435,0.000186,2]
[394841344,1764006632500,-976.99999999,0.000186,2]
[394841345,1764006632542,-289.99896235,0.000186,2]
[394841346,1764006632554,-652.30130565,0.000186,2]
[394841347,1764006632566,-501.77271766,0.000186,2]
[394841348,1764006632578,-2237.07352637,0.000186,2]
[394841355,1764006637422,-430.07742483,0.00018526,2]
[394841356,1764006637432,-500.0,0.00018599,2]
[394841357,1764006637442,-500.0,0.00018599,2]
[394841358,1764006637451,-500.0,0.00018599,2]
[394841359,1764006637461,-500.0,0.00018599,2]
[394841360,1764006637471,-500.0,0.00018599,2]
[394841361,1764006637480,-500.0,0.00018599,2]
[394841362,1764006637489,-500.0,0.00018599,2]
[394841363,1764006637498,-500.0,0.00018599,2]
[394841364,1764006637508,-500.0,0.00018599,2]
[394841365,1764006637517,-500.0,0.00018599,2]
[394841366,1764006637526,-500.0,0.00018599,2]
[394841367,1764006637536,-500.0,0.00018599,2]
[394841368,1764006637545,-500.0,0.00018599,2]
[394841369,1764006637554,-500.0,0.00018599,2]
[394841370,1764006637563,-500.0,0.00018599,2]
[394841371,1764006637574,-500.0,0.00018599,2]
[394841372,1764006637584,-500.0,0.00018599,2]
[394841373,1764006637594,-500.0,0.00018599,2]
[394841374,1764006637603,-500.0,0.00018599,2]
[394841375,1764006637615,-500.0,0.00018599,2]
[394841376,1764006637625,-500.0,0.00018599,2]
[394841377,1764006637634,-500.0,0.00018599,2]
[394841378,1764006637644,-500.0,0.00018599,2]
[394841379,1764006637653,-500.0,0.00018599,2]
[394841380,1764006637663,-500.0,0.00018599,2]
[394841381,1764006637673,-500.0,0.00018599,2]
[394841383,1764006637682,-500.0,0.00018599,2]
[394841385,1764006637691,-500.0,0.00018599,2]
[394841387,1764006637701,-500.0,0.00018599,2]
[394841389,1764006637711,-500.0,0.00018599,2]
[394841391,1764006637720,-500.0,0.00018599,2]
[394841393,1764006637729,-500.0,0.00018599,2]
[394841395,1764006637739,-500.0,0.00018599,2]
[394841397,1764006637748,-500.0,0.00018599,2]
[394841399,1764006637758,-609.10506295,0.00018599,2]
[394841401,1764006637767,-500.0,0.00018599,2]
[394841403,1764006637776,-500.0,0.00018599,2]
[394841405,1764006637786,-500.0,0.00018599,2]
[394841407,1764006637795,-500.0,0.00018599,2]
[394841409,1764006637804,-500.0,0.00018599,2]
[394841411,1764006637813,-500.0,0.00018599,2]
[394841413,1764006637823,-66460.81751222,0.000186,2]
[394841415,1764006637835,-8513.76434158,0.000186,2]
[394841417,1764006637846,-19999.9993,0.000186,2]
[394841419,1764006637856,-1591.6985661,0.000186,2]
[394841422,1764006637873,-47907.6130865,0.000186,2]
[394841424,1764006637884,-414.52367151,0.000186,2]
[394841426,1764006637895,-1961.55,0.000186,2]
[394841428,1764006637906,-6627.59512176,0.000186,2]
[394841579,1764006639510,-950.76262314,0.000186,2]
[394841580,1764006639521,-400.400011,0.000186,2]
[394841581,1764006639564,-203743.13076432,0.000186,2]
[394841582,1764006639575,-220.0,0.00018626,2]
[394841583,1764006639585,-220.0,0.00018657,2]
[394841584,1764006639595,-220.0,0.00018701,2]
[394841585,1764006639604,-220.0,0.00018779,2]
[394841586,1764006639615,-220.0,0.00018782,2]
[394841587,1764006639624,-1464.07027394,0.00018812,2]
[394841588,1764006639633,-220.0,0.00018846,2]
[394841589,1764006639643,-300.0,0.00019,2]
[394841590,1764006639655,-220.0,0.00019004,2]
[394841591,1764006639664,-220.0,0.00019008,2]
[394841592,1764006639674,-500.0,0.00019121,2]
[394841593,1764006639683,-1000.0,0.00019121,2]
[394841594,1764006639692,-660.5306224,0.00019121,2]
[394841595,1764006639702,-1000.0,0.00019121,2]
[394841596,1764006639711,-500.0,0.00019121,2]
[394841597,1764006639721,-1000.0,0.00019121,2]
[394841598,1764006639731,-304.38658287,0.00019148,2]
[394841599,1764006639740,-166.66,0.00019171,2]
[394841600,1764006639750,-587.0,0.00019209,2]
[394841601,1764006639759,-587.0,0.00019209,2]
[394841602,1764006639768,-2351.0,0.00019402,2]
[394841603,1764006639777,-166.66,0.00019575,2]
[394841604,1764006639787,-500.0,0.0001963,2]
[394841605,1764006639796,-1500.0,0.00019668,2]
[394841606,1764006639806,-500.0,0.00019668,2]
[394841607,1764006639816,-166.66,0.00019979,2]
[394841608,1764006639825,-1000.0,0.00020178,2]
[394841609,1764006639835,-830.8232162,0.00020216,2]
[394841610,1764006639844,-166.66,0.00020382,2]
[394841611,1764006639854,-5703.35,0.00020457,2]
[394841612,1764006639864,-500.0,0.00020726,2]
[394841613,1764006639873,-166.66,0.00020786,2]
[394841614,1764006639883,-823.0,0.00021,2]
[394841615,1764006639892,-823.0,0.00021,2]
[394841616,1764006639901,-250.0,0.00021104,2]
[394841617,1764006639911,-166.66,0.00021189,2]
[394841618,1764006639920,-339.0,0.00021318,2]
[394841619,1764006639929,-269.4263,0.00021454,2]
[394841620,1764006639939,-13828.61,0.00021554,2]
[394841621,1764006639948,-5000.0,0.00022403,2]
[394841622,1764006639958,-911.685,0.00022531,2]
[394841623,1764006639967,-199.09,0.00022562,2]
[394841624,1764006639976,-8195.39,0.00022562,2]
[394841625,1764006639986,-42058.95,0.00022562,2]
[394841626,1764006639996,-575.52,0.00022562,2]
[394841627,1764006640006,-150.99,0.00022562,2]
[394841628,1764006640016,-150.99,0.00022562,2]
[394841629,1764006640026,-9227.0,0.00022562,5]
[394841630,1764006640036,-999.99,0.00022562,2]
[394841631,1764006640045,-1553.59,0.00022562,2]
[394841632,1764006640056,-299.99,0.00022562,7]
[394841633,1764006640066,-9999.99,0.00022562,2]
[394841634,1764006640075,-500.57621506,0.00022573,2]
[394841635,1764006640086,-500.0,0.00022573,2]
[394841636,1764006640096,-229.58849112,0.00022573,2]
[394841637,1764006640106,-500.0,0.00022573,2]
[394841638,1764006640116,-500.0,0.00022573,2]
[394841639,1764006640125,-500.0,0.00022573,2]
[394841640,1764006640135,-501.54413169,0.00022573,2]
[394841641,1764006640144,-500.0,0.00022573,2]
[394841642,1764006640153,-151.52945777,0.00022573,2]
[394841643,1764006640163,-500.4054103,0.00022573,2]
[394841644,1764006640172,-500.0,0.00022573,2]
[394841645,1764006640181,-200.0,0.00022573,2]
[394841646,1764006640190,-500.0,0.00022573,2]
[394841647,1764006640199,-1152.0,0.00022958,2]
[394841648,1764006640208,-312.034791,0.00023121,2]
[394841649,1764006640218,-505.67181755,0.00023121,2]
[394841650,1764006640230,-574.04163079,0.00023121,2]
[394841651,1764006640240,-312.5306204,0.00023121,2]
[394841652,1764006640248,-285.47193993,0.00023121,2]
[394841653,1764006640258,-424.97,0.00024658,2]
[394841654,1764006640268,-1613.0,0.00025099,2]
[394841655,1764006640278,-1064.91595638,0.0002543,2]
[394841656,1764006640288,-908.0,0.00025531,2]
[394841657,1764006640299,-426.8933355,0.00025647,2]
[394841658,1764006640308,-500.0,0.00026134,120]
[394841659,1764006640317,-1064.91595636,0.00027263,2]
[394841660,1764006640326,-424.97,0.00027397,2]
[394841661,1764006640335,-2258.0,0.0002744,2]
[394841662,1764006640345,-158.38,0.0002907,30]
[394841663,1764006640355,-1064.91595636,0.00029096,2]
[394841664,1764006640365,-1460.01,0.00029427,2]
[394841665,1764006640375,-3162.0,0.00029999,2]
[394841666,1764006640384,-424.97,0.00030137,2]
[394841667,1764006640394,-160.47637954,0.00030232,15]
[394841668,1764006640403,-2020.79,0.00030334,2]
[394841669,1764006640412,-194.69314902,0.00030369,2]
[394841670,1764006640421,-1064.91595636,0.00030929,2]
[394841671,1764006640430,-1069.3997,0.00032696,2]
[394841672,1764006640440,-1064.91595636,0.00032762,2]
[394841673,1764006640449,-3523.0,0.00032796,2]
[394841674,1764006640458,-424.97,0.00032877,2]
[394841675,1764006640467,-4650.0,0.000334,5]
[394841676,1764006640477,-1279.622,0.00034462,39]
[394841677,1764006640486,-166.537,0.00034462,39]
[394841678,1764006640495,-1064.91595636,0.00034596,2]
[394841679,1764006640505,-500.0,0.00034988,5]
[394841680,1764006640514,-235.0806,0.00035516,2]
[394841681,1764006640523,-1000.0,0.00035516,120]
[394841682,1764006640532,-501.82911863,0.00035616,2]
[394841683,1764006640542,-500.0,0.00035616,8]
[394841684,1764006640551,-500.0,0.00035616,8]
[394841685,1764006640561,-500.0,0.00035616,8]
[394841686,1764006640570,-433.44233531,0.00035616,8]
[394841687,1764006640580,-500.0,0.00035616,8]
[394841688,1764006640589,-500.0,0.00035616,8]
[394841689,1764006640598,-193.80583126,0.00035616,2]
[394841690,1764006640607,-500.0,0.00035616,8]
[394841691,1764006640619,-500.0,0.00035616,8]
[394841692,1764006640629,-502.7536979,0.00035616,8]
[394841693,1764006640638,-255.49663164,0.00035616,8]
[394841694,1764006640647,-500.0,0.00035616,8]
[394841695,1764006640657,-500.0,0.00035616,8]
[394841696,1764006640666,-500.0,0.00035616,8]
[394841697,1764006640675,-500.0,0.00035616,8]
[394841698,1764006640684,-500.0,0.00035616,8]
[394841699,1764006640694,-500.0,0.00035616,8]
[394841700,1764006640703,-500.0,0.00035616,8]
[394841701,1764006640712,-500.0,0.00035616,8]
[394841702,1764006640722,-500.0,0.00035616,8]
[394841703,1764006640732,-500.0,0.00035616,8]
[394841704,1764006640741,-500.0,0.00035616,8]
[394841705,1764006640750,-500.0,0.00035616,8]
[394841706,1764006640759,-530.90411254,0.00035616,8]
[394841707,1764006640769,-500.0,0.00035616,8]
[394841708,1764006640778,-500.0,0.00035616,8]
[394841709,1764006640787,-500.0,0.00035616,8]
[394841710,1764006640797,-500.0,0.00035616,8]
[394841711,1764006640806,-243.92121997,0.00035616,8]
[394841712,1764006640815,-500.0,0.00035616,8]
[394841713,1764006640824,-500.0,0.00035616,8]
[394841714,1764006640833,-500.0,0.00035616,8]
[394841715,1764006640843,-500.0,0.00035616,8]
[394841716,1764006640853,-500.0,0.00035616,8]
[394841717,1764006640862,-500.0,0.00035616,8]
[394841718,1764006640873,-500.0,0.00035616,8]
[394841719,1764006640883,-500.0,0.00035616,8]
[394841720,1764006640893,-500.0,0.00035616,8]
[394841721,1764006640902,-500.0,0.00035616,8]
[394841722,1764006640911,-500.0,0.00035616,8]
[394841723,1764006640921,-500.0,0.00035616,8]
[394841724,1764006640930,-500.0,0.00035616,8]
[394841725,1764006640939,-500.0,0.00035616,8]
[394841726,1764006640948,-500.0,0.00035616,8]
[394841727,1764006640958,-500.0,0.00035616,8]
[394841728,1764006640967,-517.14705854,0.00035616,8]
[394841729,1764006640976,-500.0,0.00035616,8]
[394841730,1764006640985,-500.0,0.00035616,8]
[394841731,1764006640995,-500.0,0.00035616,8]
[394841732,1764006641004,-500.0,0.00035616,8]
[394841733,1764006641013,-500.0,0.00035616,8]
[394841734,1764006641023,-500.0,0.00035616,8]
[394841735,1764006641033,-500.0,0.00035616,8]
[394841736,1764006641042,-500.0,0.00035616,8]
[394841737,1764006641051,-362.6595571,0.00035616,8]
[394841738,1764006641060,-248.94769693,0.00035616,8]
[394841739,1764006641069,-500.0,0.00035616,8]
[394841740,1764006641079,-500.0,0.00035616,8]
[394841741,1764006641088,-500.0,0.00035616,8]
[394841742,1764006641097,-500.0,0.00035616,8]
[394841743,1764006641107,-500.0,0.00035616,8]
[394841744,1764006641116,-500.0,0.00035616,8]
[394841745,1764006641125,-500.0,0.00035616,8]
[394841746,1764006641134,-500.0,0.00035616,8]
[394841747,1764006641143,-500.0,0.00035616,8]
[394841748,1764006641153,-500.0,0.00035616,8]
[394841749,1764006641163,-500.0,0.00035616,8]
[394841750,1764006641172,-500.0,0.00035616,8]
[394841751,1764006641182,-500.0,0.00035616,8]
[394841752,1764006641191,-500.0,0.00035616,8]
[394841753,1764006641200,-500.0,0.00035616,8]
[394841754,1764006641209,-500.0,0.00035616,8]
[394841755,1764006641219,-500.0,0.00035616,8]
[394841756,1764006641232,-500.0,0.00035616,8]
[394841757,1764006641241,-500.0,0.00035616,8]
[394841758,1764006641250,-500.0,0.00035616,8]
[394841759,1764006641259,-500.0,0.00035616,8]
[394841760,1764006641275,-500.0,0.00035616,8]
[394841761,1764006641284,-500.0,0.00035616,8]
[394841762,1764006641294,-555.33053711,0.00035616,8]
[394841763,1764006641304,-500.0,0.00035616,8]
[394841764,1764006641313,-411.5181431,0.00035616,8]
[394841765,1764006641322,-500.0,0.00035616,8]
[394841766,1764006641331,-506.67692169,0.00035616,8]
[394841767,1764006641341,-500.0,0.00035616,8]
[394841768,1764006641350,-500.0,0.00035616,8]
[394841769,1764006641359,-500.0,0.00035616,8]
[394841770,1764006641370,-573.42288102,0.00035616,8]
[394841771,1764006641379,-284.08537496,0.00035616,8]
[394841772,1764006641390,-500.0,0.00035616,8]
[394841773,1764006641401,-993.55,0.00035616,14]
[394841774,1764006641410,-424.97,0.00035616,2]
[394841775,1764006641419,-501.28182449,0.00035673,5]
[394841776,1764006641428,-2500.0,0.0003579,2]
[394841777,1764006641439,-500.0,0.0003589,8]
[394841778,1764006641448,-500.0,0.0003589,8]
[394841779,1764006641458,-504.32017997,0.0003589,8]
[394841780,1764006641467,-500.0,0.0003589,8]
[394841781,1764006641478,-500.0,0.0003589,8]
[394841782,1764006641488,-500.0,0.0003589,8]
[394841783,1764006641497,-500.0,0.0003589,8]
[394841784,1764006641507,-500.0,0.0003589,8]
[394841785,1764006641516,-500.0,0.0003589,8]
[394841786,1764006641525,-500.0,0.0003589,8]
[394841787,1764006641534,-542.63,0.0003589,8]
[394841788,1764006641543,-500.0,0.0003589,8]
[394841789,1764006641553,-500.0,0.0003589,8]
[394841790,1764006641563,-500.0,0.0003589,8]
[394841791,1764006641572,-500.0,0.0003589,8]
[394841792,1764006641582,-500.0,0.0003589,8]
[394841793,1764006641592,-500.0,0.0003589,8]
[394841794,1764006641602,-500.0,0.0003589,8]
[394841795,1764006641611,-415.9402546,0.0003589,8]
[394841796,1764006641621,-500.0,0.0003589,8]
[394841797,1764006641630,-500.0,0.0003589,8]
[394841798,1764006641640,-500.0,0.0003589,8]
[394841799,1764006641649,-500.0,0.0003589,8]
[394841800,1764006641658,-500.0,0.0003589,8]
[394841801,1764006641667,-500.0,0.0003589,8]
[394841802,1764006641676,-500.0,0.0003589,8]
[394841803,1764006641685,-500.0,0.0003589,8]
[394841804,1764006641694,-170.04306777,0.0003589,8]
[394841805,1764006641704,-500.0,0.0003589,8]
[394841806,1764006641713,-415.96104211,0.0003589,8]
[394841807,1764006641722,-500.0,0.0003589,8]
[394841808,1764006641731,-500.0,0.0003589,8]
[394841809,1764006641741,-500.0,0.0003589,8]
[394841810,1764006641750,-500.0,0.0003589,8]
[394841811,1764006641759,-560.52668661,0.0003589,8]
[394841812,1764006641768,-500.0,0.0003589,8]